bitfinex/quotes_BTCUSD_20241130
["timestamp","ask_amount","ask_price","bid_price","bid_amount"]
[1732938457575,0.253386,96724.0,96723.0,0.02060776]
[1732938458254,0.103386,96724.0,96723.0,0.02060776]
[1732938458399,0.103386,96724.0,96723.0,0.02260776]
[1732938459307,0.103386,96724.0,96723.0,0.002]
[1732938459506,0.20623121,96724.0,96723.0,0.002]
[1732938459712,0.28423121,96724.0,96723.0,0.002]
[1732938459863,0.29423121,96724.0,96723.0,0.003]
[1732938460482,0.44423121,96724.0,96723.0,0.003]
[1732938460832,0.103415,96697.0,96696.0,0.0777863]
[1732938461212,0.103415,96697.0,96696.0,0.09715316]
[1732938463295,0.103415,96697.0,96696.0,0.09888316]
[1732938463957,0.103415,96697.0,96696.0,0.09988316]
[1732938464579,0.104415,96697.0,96696.0,0.09988316]
[1732938464808,0.103415,96697.0,96696.0,0.09888316]
[1732938465212,0.104415,96697.0,96696.0,0.09888316]
[1732938466097,0.002,96697.0,96696.0,0.09888316]
[1732938466333,0.105415,96697.0,96696.0,0.09888316]
[1732938466816,0.104415,96697.0,96696.0,0.09888316]
[1732938467173,0.105415,96697.0,96696.0,0.09888316]
[1732938467590,0.103415,96697.0,96696.0,0.09888316]
[1732938467794,0.105415,96697.0,96696.0,0.09888316]
[1732938468447,0.002,96697.0,96696.0,0.09888316]
[1732938468690,0.002,96697.0,96696.0,0.07853]
[1732938468691,0.105415,96697.0,96696.0,0.07853]
[1732938469098,0.104415,96697.0,96696.0,0.07853]
[1732938470583,0.103415,96697.0,96696.0,0.07853]
[1732938471339,0.103415,96697.0,96696.0,0.05053]
[1732938471754,0.103415,96697.0,96696.0,0.04853]
[1732938472059,0.103415,96697.0,96696.0,0.05153]
[1732938473125,0.09862516,96706.0,96696.0,0.05153]
[1732938473355,0.20682,96703.0,96696.0,0.05153]
[1732938473584,0.15,96705.0,96696.0,0.05153]
[1732938473744,0.10341,96702.0,96696.0,0.05153]
[1732938473943,0.206818,96703.0,96696.0,0.05053]
[1732938474170,0.206816,96704.0,96696.0,0.05053]
[1732938474367,0.103414,96699.0,96696.0,0.04853]
[1732938474574,0.103414,96698.0,96696.0,0.04853]
[1732938474776,0.206823,96701.0,96696.0,0.04853]
[1732938474977,0.103414,96699.0,96696.0,0.04853]
[1732938475625,0.206823,96701.0,96696.0,0.04853]
[1732938475963,0.103414,96699.0,96696.0,0.05053]
[1732938476141,0.103415,96697.0,96696.0,0.04853]
[1732938476380,0.103414,96699.0,96696.0,0.04853]
[1732938476584,0.103415,96698.0,96696.0,0.04853]
[1732938476788,0.206816,96704.0,96696.0,0.04853]
[1732938477123,0.103412,96701.0,96696.0,0.04853]
[1732938477212,0.104277,96701.0,96696.0,0.04853]
[1732938477436,0.103413,96699.0,96696.0,0.04853]
[1732938477667,0.000865,96701.0,96696.0,0.04953]
[1732938477886,0.000865,96701.0,96696.0,0.04853]
[1732938478093,0.103413,96700.0,96696.0,0.04953]
[1732938478345,0.000865,96701.0,96696.0,0.04953]
[1732938478555,0.103413,96699.0,96696.0,0.04853]
[1732938478732,0.000865,96701.0,96696.0,0.04853]
[1732938479039,0.206825,96700.0,96696.0,0.04853]
[1732938479472,0.103415,96698.0,96696.0,0.04953]
[1732938479857,0.103415,96698.0,96696.0,0.05053]
[1732938480277,0.103415,96698.0,96696.0,0.04953]
[1732938480438,0.103414,96698.0,96696.0,0.04953]
[1732938480637,0.103414,96698.0,96696.0,0.05053]
[1732938481041,0.103415,96697.0,96696.0,0.05053]
[1732938481239,0.103415,96697.0,96696.0,0.04953]
[1732938481511,0.103415,96698.0,96696.0,0.04953]
[1732938481752,0.206826,96700.0,96696.0,0.04953]
[1732938481881,0.103415,96698.0,96696.0,0.04953]
[1732938482156,0.000865,96701.0,96696.0,0.05153]
[1732938482317,0.000865,96701.0,96697.0,0.047]
[1732938482586,0.103414,96698.0,96697.0,0.047]
[1732938483305,0.206825,96700.0,96697.0,0.047]
[1732938483534,0.103412,96700.0,96697.0,0.047]
[1732938483749,0.206825,96700.0,96697.0,0.047]
[1732938483964,0.000865,96701.0,96697.0,0.048]
[1732938484165,0.103414,96698.0,96697.0,0.048]
[1732938484368,0.103414,96698.0,96697.0,0.047]
[1732938485261,0.103413,96699.0,96697.0,0.048]
[1732938485465,0.000865,96701.0,96697.0,0.048]
[1732938485671,0.103413,96700.0,96697.0,0.048]
[1732938485887,0.000865,96701.0,96697.0,0.05]
[1732938486973,0.000865,96701.0,96697.0,0.047]
[1732938487177,0.000865,96701.0,96700.0,0.232712]
[1732938488757,0.000865,96701.0,96700.0,0.234712]
[1732938488962,0.000865,96701.0,96700.0,0.232712]
[1732938489751,0.000865,96701.0,96700.0,0.1333]
[1732938490377,0.001865,96701.0,96700.0,0.1413]
[1732938491668,0.06476064,96710.0,96700.0,0.1413]
[1732938491875,0.206805,96709.0,96700.0,0.1413]
[1732938492098,0.06476064,96710.0,96700.0,0.1413]
[1732938492347,0.103406,96707.0,96700.0,0.1413]
[1732938492526,0.103406,96707.0,96700.0,0.1373]
[1732938492964,0.103406,96707.0,96700.0,0.1393]
[1732938493284,0.103406,96707.0,96700.0,0.1313]
[1732938493500,0.103403,96709.0,96700.0,0.1353]
[1732938493902,0.103404,96708.0,96700.0,0.1293]
[1732938494106,0.103404,96708.0,96700.0,0.1343]
[1732938494322,0.06476064,96710.0,96700.0,0.1373]
[1732938494524,0.103405,96707.0,96700.0,0.1323]
[1732938494727,0.06476064,96710.0,96700.0,0.1363]
[1732938494948,0.103404,96708.0,96700.0,0.1363]
[1732938495161,0.103405,96707.0,96700.0,0.1323]
[1732938495366,0.103411,96701.0,96700.0,0.008]
[1732938496022,0.103411,96701.0,96700.0,0.005]
[1732938496446,0.103411,96701.0,96700.0,0.007]
[1732938496658,0.20682,96703.0,96700.0,0.002]
[1732938496875,0.103415,96697.0,96696.0,0.00173]
[1732938498343,0.103415,96697.0,96696.0,0.00673]
[1732938500107,0.206825,96700.0,96696.0,0.00673]
[1732938500108,0.15,96707.0,96696.0,0.00673]
[1732938500321,0.103415,96697.0,96696.0,0.00873]
[1732938500952,0.103414,96698.0,96696.0,0.00873]
[1732938501179,0.103413,96699.0,96696.0,0.00373]
[1732938501381,0.10428,96698.0,96696.0,0.00373]
[1732938501586,0.10428,96698.0,96696.0,0.00173]
[1732938501771,0.103415,96697.0,96696.0,0.00173]
[1732938502083,0.103415,96697.0,96696.0,0.00573]
[1732938502285,0.000865,96698.0,96696.0,0.13103]
[1732938502829,0.000865,96698.0,96696.0,0.13303]
[1732938503032,0.103415,96697.0,96696.0,0.13303]
[1732938503737,0.103415,96697.0,96696.0,0.13703]
[1732938503915,0.103415,96697.0,96696.0,0.13303]
[1732938504137,0.103415,96697.0,96696.0,0.13703]
[1732938505157,0.103415,96697.0,96696.0,0.13503]
[1732938505364,0.10428,96698.0,96696.0,0.13503]
[1732938505572,0.103415,96697.0,96696.0,0.13703]
[1732938505935,0.103415,96697.0,96696.0,0.13503]
[1732938506342,0.103415,96697.0,96696.0,0.13703]
[1732938506545,0.000865,96698.0,96696.0,0.13303]
[1732938507120,0.10428,96698.0,96696.0,0.13303]
[1732938507338,0.000865,96698.0,96696.0,0.13303]
[1732938507589,0.000865,96698.0,96696.0,0.13803]
[1732938507771,0.000865,96698.0,96696.0,0.13303]
[1732938508198,0.104279,96698.0,96696.0,0.13503]
[1732938508614,0.104279,96698.0,96696.0,0.13703]
[1732938508783,0.10428,96698.0,96696.0,0.13703]
[1732938508941,0.000865,96698.0,96696.0,0.13703]
[1732938509155,0.104279,96698.0,96696.0,0.13703]
[1732938510299,0.103415,96697.0,96696.0,0.13703]
[1732938510519,0.000865,96698.0,96696.0,0.13703]
[1732938511234,0.000865,96698.0,96696.0,0.13503]
[1732938511467,0.06476064,96710.0,96696.0,0.13503]
[1732938511660,0.15,96709.0,96696.0,0.13703]
[1732938511880,0.15,96713.0,96699.0,0.1248]
[1732938512087,0.15,96713.0,96704.0,0.1248]
[1732938512088,0.06476064,96710.0,96704.0,0.1248]
[1732938512500,0.06476064,96710.0,96704.0,0.228207]
[1732938513120,0.06576064,96710.0,96704.0,0.228207]
[1732938513336,0.06476064,96710.0,96704.0,0.230208]
[1732938513544,0.06476064,96710.0,96704.0,0.1268]
[1732938513924,0.06476064,96710.0,96704.0,0.1308]
[1732938514133,0.06476064,96710.0,96706.0,0.103405]
[1732938514332,0.06476064,96710.0,96704.0,0.1308]
[1732938514333,0.15,96715.0,96708.0,0.103403]
[1732938514485,0.06476064,96716.0,96709.0,0.103402]
[1732938514686,0.00458201,96715.0,96709.0,0.103402]
[1732938515535,0.00458201,96715.0,96710.0,0.02097793]
[1732938516229,0.00458201,96715.0,96710.0,0.12437893]
[1732938516429,0.00458201,96715.0,96710.0,0.02097793]
[1732938516636,0.06476064,96716.0,96710.0,0.02097793]
[1732938516864,0.06476064,96716.0,96710.0,0.12437893]
[1732938517006,0.00490752,96715.0,96710.0,0.02097793]
[1732938517403,0.06476064,96716.0,96710.0,0.12537893]
[1732938517611,0.06476064,96716.0,96710.0,0.02197793]
[1732938517816,0.00490752,96715.0,96710.0,0.02197793]
[1732938519150,0.00490752,96715.0,96711.0,0.1034]
[1732938519364,0.00490752,96715.0,96710.0,0.22778093]
[1732938519574,0.00490752,96715.0,96710.0,0.02097793]
[1732938519801,0.21476064,96720.0,96710.0,0.02197793]
[1732938520245,0.00490755,96719.0,96711.0,0.001]
[1732938520475,0.00490755,96719.0,96710.0,0.02097793]
[1732938520701,0.00490755,96719.0,96710.0,0.12437893]
[1732938521143,0.00490755,96719.0,96710.0,0.02097793]
[1732938521363,0.00590755,96719.0,96707.0,0.00183003]
[1732938521641,0.00590755,96719.0,96711.0,0.1215]
[1732938521887,0.00690755,96719.0,96711.0,0.1215]
[1732938522610,0.00590755,96719.0,96711.0,0.1215]
[1732938523020,0.00690755,96719.0,96711.0,0.1215]
[1732938523197,0.00690755,96719.0,96714.0,0.103397]
[1732938523433,0.00590755,96719.0,96711.0,0.1215]
[1732938523656,0.00690755,96719.0,96711.0,0.1215]
[1732938524081,0.00590755,96719.0,96718.0,0.16904264]
[1732938524286,0.0002,96739.0,96718.0,0.16904264]
[1732938524287,0.06476064,96730.0,96718.0,0.52571557]
[1732938524523,0.06476064,96730.0,96719.0,0.10284521]
[1732938524737,0.06476064,96730.0,96720.0,0.10339]
[1732938524946,0.0002,96739.0,96721.0,0.10284521]
[1732938525119,0.06476064,96730.0,96724.0,0.103386]
[1732938525596,0.06476064,96730.0,96724.0,0.148586]
[1732938526426,0.06476064,96730.0,96724.0,0.15041573]
[1732938526680,0.0182618,96730.0,96729.0,0.103381]
[1732938526881,0.0002,96739.0,96726.0,0.10521367]
[1732938526882,0.1502,96739.0,96726.0,0.10521367]
[1732938527302,0.00490783,96732.0,96726.0,0.10521367]
[1732938527528,0.1502,96739.0,96726.0,0.10521367]
[1732938527736,0.00490783,96732.0,96726.0,0.10521367]
[1732938527884,0.00490783,96732.0,96726.0,0.10821367]
[1732938528099,0.1502,96739.0,96726.0,0.10821367]
[1732938528279,0.00490783,96732.0,96727.0,0.103382]
[1732938528482,0.00490783,96732.0,96726.0,0.00382967]
[1732938528483,0.1502,96739.0,96728.0,0.10521165]
[1732938528677,0.00490782,96732.0,96728.0,0.10521165]
[1732938528947,0.1502,96739.0,96728.0,0.10521165]
[1732938529148,0.00490783,96732.0,96728.0,0.00182965]
[1732938529378,0.1502,96739.0,96729.0,0.0782]
[1732938529592,0.1502,96739.0,96729.0,0.08002965]
[1732938529737,0.1502,96739.0,96732.0,0.103378]
[1732938530152,0.1502,96739.0,96729.0,0.0782]
[1732938530352,0.0002,96739.0,96732.0,0.103378]
[1732938530576,0.0002,96739.0,96732.0,0.25465277]
[1732938530758,0.0002,96739.0,96732.0,0.25282321]
[1732938531157,0.0002,96739.0,96732.0,0.33102321]
[1732938532087,0.0018652,96733.0,96732.0,0.33702321]
[1732938532894,0.0018652,96733.0,96732.0,0.34002321]
[1732938533118,0.0018652,96733.0,96732.0,0.33702321]
[1732938533521,0.0018652,96733.0,96732.0,0.34602321]
[1732938533769,0.0018652,96733.0,96732.0,0.34702061]
[1732938536584,0.0002,96739.0,96738.0,0.103371]
[1732938537214,0.0002,96739.0,96738.0,0.10520047]
[1732938537844,0.0010649,96739.0,96738.0,0.10920047]
[1732938538048,0.0010649,96739.0,96738.0,0.11620047]
[1732938538473,0.0010649,96739.0,96738.0,0.01282947]
[1732938538703,0.0010649,96739.0,96738.0,0.11620047]
[1732938539338,0.0010649,96739.0,96738.0,0.26564568]
[1732938539605,0.0010649,96739.0,96738.0,0.34201621]
[1732938541726,0.06476064,96750.0,96749.0,0.10336]
[1732938541943,0.1502,96759.0,96747.0,0.0009989]
[1732938542392,0.00518484,96754.0,96748.0,0.20855126]
[1732938542630,0.00518484,96754.0,96750.0,0.103358]
[1732938542851,0.00518484,96754.0,96748.0,0.20855126]
[1732938542852,0.00518484,96754.0,96749.0,0.0466]
[1732938543093,0.00518484,96754.0,96751.0,0.103357]
[1732938543308,0.00518484,96754.0,96747.0,0.0009989]
[1732938543518,0.10336,96749.0,96747.0,0.0009989]
[1732938543725,0.103361,96748.0,96747.0,0.0009989]
[1732938543930,0.10854606,96748.0,96747.0,0.0009989]
[1732938545292,0.10854606,96748.0,96747.0,0.0029989]
[1732938546382,0.00518506,96748.0,96747.0,0.0059989]
[1732938546806,0.00518506,96748.0,96747.0,0.0009989]
[1732938547244,0.00518506,96748.0,96747.0,0.0069989]
[1732938547452,0.206714,96752.0,96747.0,0.0029989]
[1732938547663,0.00518938,96748.0,96747.0,0.0059989]
[1732938547898,0.356716,96751.0,96747.0,0.0059989]
[1732938548091,0.25855038,96748.0,96747.0,0.0059989]
[1732938548275,0.15,96748.0,96747.0,0.0079989]
[1732938548479,0.15518938,96748.0,96747.0,0.0079989]
[1732938548651,0.25855038,96748.0,96747.0,0.0079989]
[1732938549500,0.00518938,96748.0,96747.0,0.0029989]
[1732938549696,0.00518938,96748.0,96747.0,0.18259014]
[1732938549901,0.0008647,96750.0,96747.0,0.07922814]
[1732938550095,0.0008647,96750.0,96749.0,0.10336]
[1732938550250,0.0008647,96750.0,96749.0,0.10518929]
[1732938550858,0.0008647,96750.0,96749.0,0.00182929]
[1732938551233,0.0008647,96750.0,96749.0,0.10518929]
[1732938551618,0.0008652,96755.0,96749.0,0.10818929]
[1732938551863,0.0008652,96755.0,96749.0,0.00482929]
[1732938552280,0.0008652,96755.0,96749.0,0.10818929]
[1732938552850,0.0008652,96755.0,96749.0,0.10518929]
[1732938553235,0.0008652,96755.0,96749.0,0.10818929]
[1732938553438,0.0008652,96755.0,96749.0,0.11318929]
[1732938553643,0.0008652,96755.0,96749.0,0.10518929]
[1732938554049,0.0008652,96755.0,96749.0,0.11318929]
[1732938554443,0.0008652,96755.0,96749.0,0.11018929]
[1732938554675,0.0008652,96755.0,96749.0,0.01482929]
[1732938555129,0.0008652,96755.0,96749.0,0.00682929]
[1732938555343,0.0008652,96755.0,96749.0,0.01482929]
[1732938556548,0.09877795,96759.0,96749.0,0.01482929]
[1732938556549,0.05309632,96759.0,96749.0,0.01482929]
[1732938556803,0.30167427,96759.0,96749.0,0.11818929]
[1732938557228,0.30167427,96759.0,96751.0,0.103357]
[1732938557439,0.30167427,96759.0,96749.0,0.01482929]
[1732938557623,0.30167427,96759.0,96750.0,0.103358]
[1732938557840,0.30167427,96759.0,96750.0,0.00182926]
[1732938558025,0.30167427,96759.0,96749.0,0.004]
[1732938558026,0.30167427,96759.0,96751.0,0.20854526]
[1732938558377,0.30167427,96759.0,96754.0,0.103354]
[1732938558575,0.30167427,96759.0,96756.0,0.103352]
[1732938558779,0.00520334,96758.0,96756.0,0.1043487]
[1732938558896,0.15,96765.0,96756.0,0.0009967]
[1732938559098,0.00520336,96764.0,96756.0,0.00282585]
[1732938559318,0.00520336,96764.0,96757.0,0.04882915]
[1732938559523,0.00059859,96764.0,96757.0,0.04882915]
[1732938559810,0.00520323,96763.0,96757.0,0.04882915]
[1732938560232,0.00520323,96763.0,96757.0,0.00182915]
[1732938560452,0.00520323,96763.0,96758.0,0.0018291]
[1732938560654,0.00520323,96763.0,96758.0,0.1051791]
[1732938561322,0.00520323,96763.0,96761.0,0.103346]
[1732938561521,0.00520323,96763.0,96758.0,0.0018291]
[1732938561522,0.00520323,96763.0,96762.0,0.179746]
[1732938561844,0.00520323,96763.0,96762.0,0.226746]
[1732938563970,0.00520323,96763.0,96762.0,0.237746]
[1732938564401,0.00520323,96763.0,96762.0,0.33659121]
[1732938564883,0.00520323,96763.0,96762.0,0.114346]
[1732938565104,0.00520323,96763.0,96762.0,0.011]
[1732938565306,0.00520323,96763.0,96762.0,0.114346]
[1732938567176,0.00520323,96763.0,96762.0,0.011]
[1732938569128,0.00520323,96763.0,96762.0,0.114346]
[1732938570831,0.00520323,96763.0,96762.0,0.011]
[1732938571743,0.00523484,96763.0,96762.0,0.011]
[1732938571990,0.09857795,96766.0,96762.0,0.011]
[1732938572226,0.103345,96763.0,96762.0,0.011]
[1732938572846,0.103345,96763.0,96762.0,0.007]
[1732938573251,0.103345,96763.0,96762.0,0.01]
[1732938573444,0.1042096,96763.0,96762.0,0.01]
[1732938573629,0.1042096,96763.0,96762.0,0.007]
[1732938573965,0.1042096,96763.0,96762.0,0.011]
[1732938573966,0.2542096,96763.0,96762.0,0.011]
[1732938576033,0.2542096,96763.0,96762.0,0.004]
[1732938576457,0.2552096,96763.0,96762.0,0.004]
[1732938576601,0.2542096,96763.0,96762.0,0.004]
[1732938577076,0.103351,96757.0,96749.0,0.0017292]
[1732938577298,0.253351,96757.0,96749.0,0.0017292]
[1732938577740,0.381351,96757.0,96749.0,0.0017292]
[1732938577950,0.103359,96750.0,96749.0,0.0017292]
[1732938578166,0.253359,96750.0,96749.0,0.0017292]
[1732938579741,0.253359,96750.0,96749.0,0.0097292]
[1732938580147,0.26303548,96750.0,96749.0,0.0097292]
[1732938580371,0.26303548,96750.0,96749.0,0.0067292]
[1732938580582,0.26303548,96750.0,96749.0,0.0017292]
[1732938580918,0.26303548,96750.0,96749.0,0.0047292]
[1732938581053,0.253359,96750.0,96749.0,0.0047292]
[1732938582027,0.253359,96750.0,96749.0,0.0017292]
[1732938582246,0.253359,96750.0,96749.0,0.0027292]
[1732938582377,0.253359,96750.0,96749.0,0.0047292]
[1732938588498,0.098359,96750.0,96749.0,0.0047292]
[1732938591133,0.103358,96751.0,96750.0,4.901641]
[1732938591365,0.15,96751.0,96750.0,4.901641]
[1732938592287,0.206707,96755.0,96750.0,4.901641]
[1732938592288,0.15,96754.0,96750.0,4.902641]
[1732938592584,0.15,96753.0,96750.0,4.904641]
[1732938592999,0.253356,96753.0,96750.0,4.904641]
[1732938593207,0.103358,96751.0,96750.0,4.902641]
[1732938593413,0.253356,96753.0,96750.0,4.902641]
[1732938593944,0.253356,96753.0,96750.0,4.901641]
[1732938594160,0.15,96756.0,96750.0,4.902641]
[1732938594368,0.15,96751.0,96750.0,4.902641]
[1732938594571,0.253358,96751.0,96750.0,4.902641]
[1732938596000,0.253358,96751.0,96750.0,4.901641]
[1732938596205,0.253358,96751.0,96750.0,4.904641]
[1732938596722,0.19724066,96760.0,96759.0,2.23900338]
[1732938596938,0.103348,96760.0,96759.0,2.23999988]
[1732938598021,0.104348,96760.0,96759.0,2.23999988]
[1732938598862,0.105348,96760.0,96759.0,2.23999988]
[1732938605889,0.20819321,96760.0,96759.0,2.23999988]
[1732938606123,0.35819321,96760.0,96759.0,2.23999988]
[1732938608754,0.38914513,96760.0,96759.0,2.24172908]
[1732938608930,0.39000973,96760.0,96759.0,2.24172908]
[1732938609387,0.35905781,96760.0,96759.0,2.24172908]
[1732938609604,0.39000989,96760.0,96759.0,2.24172908]
[1732938609803,0.35905781,96760.0,96759.0,2.24172908]
[1732938612166,0.39001612,96760.0,96759.0,2.24172908]
[1732938612369,0.35905781,96760.0,96759.0,2.24172908]
[1732938612584,0.39001577,96760.0,96759.0,2.24172908]
[1732938612799,0.35905781,96760.0,96759.0,2.24172908]
[1732938613599,0.39001464,96760.0,96759.0,2.24172908]
[1732938614916,0.35905781,96760.0,96759.0,2.24172908]
[1732938622829,0.00017939,96765.0,96759.0,2.24172908]
[1732938622830,0.206671,96772.0,96765.0,1.45465298]
[1732938623042,0.35284521,96766.0,96765.0,1.45465298]
[1732938623463,0.45618721,96766.0,96765.0,1.45465298]
[1732938623935,0.45918721,96766.0,96765.0,1.45465298]
[1732938624139,0.20918721,96766.0,96765.0,1.45465298]
[1732938625112,0.35918721,96766.0,96765.0,1.45465298]
[1732938628695,0.60918721,96766.0,96765.0,1.45465298]
[1732938629259,0.77088721,96766.0,96765.0,1.45465298]
[1732938630253,0.76788721,96766.0,96765.0,1.45465298]
[1732938631532,0.76788721,96766.0,96765.0,1.45565298]
[1732938631533,0.77288721,96766.0,96765.0,1.45565298]
[1732938631754,0.76788721,96766.0,96765.0,1.45465298]
[1732938632217,0.77975181,96766.0,96765.0,1.45665298]
[1732938632576,0.77375181,96766.0,96765.0,1.45565298]
[1732938632792,0.80470623,96766.0,96765.0,1.45565298]
[1732938632983,0.81070623,96766.0,96765.0,1.45665298]
[1732938633627,0.80470623,96766.0,96765.0,1.45565298]
[1732938633827,0.81070623,96766.0,96765.0,1.45665298]
[1732938634255,0.80570623,96766.0,96765.0,1.45565298]
[1732938634828,0.90853769,96766.0,96765.0,1.35230798]
[1732938635043,0.91353769,96766.0,96765.0,1.35330798]
[1732938635252,1.14588193,96766.0,96765.0,1.35330798]
[1732938635677,1.03705047,96766.0,96765.0,1.35230798]
[1732938635876,0.80570623,96766.0,96765.0,1.35230798]
[1732938636047,1.0430434,96766.0,96765.0,1.35330798]
[1732938636463,0.81070623,96766.0,96765.0,1.35330798]
[1732938638952,1.12073623,96766.0,96765.0,1.35330798]
[1732938640924,1.22356769,96766.0,96765.0,1.35330798]
[1732938641999,1.12073623,96766.0,96765.0,1.35330798]
[1732938642483,1.12073623,96766.0,96765.0,1.31196998]
[1732938643605,1.30653134,96766.0,96765.0,1.31196998]
[1732938644201,1.30653134,96766.0,96765.0,1.31369918]
[1732938644579,1.12073623,96766.0,96765.0,1.31369918]
[1732938644785,1.25904575,96766.0,96765.0,1.31369918]
[1732938644994,1.07323623,96766.0,96765.0,1.31369918]
[1732938645557,1.17606769,96766.0,96765.0,1.31369918]
[1732938647260,1.16785325,96766.0,96765.0,1.31369918]
[1732938647459,1.12139379,96766.0,96765.0,1.31369918]
[1732938647701,0.95903623,96766.0,96765.0,1.31369918]
[1732938647948,0.96903623,96766.0,96765.0,1.31369918]
[1732938649249,0.99203623,96766.0,96765.0,1.31369918]
[1732938649462,1.13139379,96766.0,96765.0,1.31369918]
[1732938649870,0.99203623,96766.0,96765.0,1.31369918]
[1732938650711,0.98203623,96766.0,96765.0,1.31369918]
[1732938650966,0.98203623,96766.0,96765.0,1.38909918]
[1732938651389,1.13145337,96766.0,96765.0,1.38909918]
[1732938651585,1.12145337,96766.0,96765.0,1.38909918]
[1732938651835,1.09845337,96766.0,96765.0,1.38909918]
[1732938652034,1.09845337,96766.0,96765.0,1.43829918]
[1732938652280,0.55903623,96766.0,96765.0,1.43829918]
[1732938652506,0.52808181,96766.0,96765.0,1.43829918]
[1732938653596,0.52308181,96766.0,96765.0,1.43729918]
[1732938653812,0.67808181,96766.0,96765.0,1.43829918]
[1732938654213,0.67808181,96766.0,96765.0,1.43729918]
[1732938654214,0.67208181,96766.0,96765.0,1.43729918]
[1732938654652,0.67808181,96766.0,96765.0,1.43829918]
[1732938655090,0.66708181,96766.0,96765.0,1.43629918]
[1732938655518,0.67608181,96766.0,96765.0,1.43729918]
[1732938655927,0.66708181,96766.0,96765.0,1.43629918]
[1732938656341,0.67008181,96766.0,96765.0,1.43629918]
[1732938656770,0.67508181,96766.0,96765.0,1.43629918]
[1732938657634,0.5722366,96766.0,96765.0,1.43629918]
[1732938661760,0.67508181,96766.0,96765.0,1.43629918]
[1732938662009,0.7503719,96766.0,96765.0,1.31169918]
[1732938662216,0.67508181,96766.0,96765.0,1.31169918]
[1732938667737,0.67508181,96766.0,96765.0,1.43699918]
[1732938674859,0.67508181,96766.0,96765.0,1.31169918]
[1732938676316,0.67508181,96766.0,96765.0,1.43699918]
[1732938676629,0.67508181,96766.0,96765.0,1.43199918]
[1732938677046,0.5722366,96766.0,96765.0,1.43199918]
[1732938682457,0.77429559,96766.0,96765.0,1.30669918]
[1732938683265,0.67508181,96766.0,96765.0,1.30669918]
[1732938685748,0.70808181,96766.0,96765.0,1.30669918]
[1732938685967,0.73906016,96766.0,96765.0,1.30669918]
[1732938687031,0.73106016,96766.0,96765.0,1.22402318]
[1732938687242,0.86036016,96766.0,96765.0,1.20435418]
[1732938687456,0.99969412,96766.0,96765.0,1.20435418]
[1732938687680,0.97309315,96766.0,96765.0,1.18368518]
[1732938687901,1.11742711,96766.0,96765.0,1.10200918]
[1732938688121,0.97809315,96766.0,96765.0,1.10200918]
[1732938688473,0.97109315,96766.0,96765.0,1.10100918]
[1732938688673,1.15690246,96766.0,96765.0,0.99766418]
[1732938688920,1.16390246,96766.0,96765.0,0.99866418]
[1732938689322,1.16390222,96766.0,96765.0,0.99866418]
[1732938689790,1.16390222,96766.0,96765.0,0.97799518]
[1732938689971,1.16390222,96766.0,96765.0,0.95732618]
[1732938690188,0.97809315,96766.0,96765.0,0.91598818]
[1732938690359,0.97809315,96766.0,96765.0,0.89531918]
[1732938690928,0.97809315,96766.0,96765.0,0.81264318]
[1732938691081,0.97809315,96766.0,96765.0,0.79197418]
[1732938692264,0.97809315,96766.0,96765.0,0.75063618]
[1732938692474,0.97809315,96766.0,96765.0,0.70929818]
[1732938692892,0.97809315,96766.0,96765.0,0.62662218]
[1732938693092,0.97809315,96766.0,96765.0,0.60595318]
[1732938693557,0.88593186,96766.0,96765.0,0.60595318]
[1732938694187,1.0716884,96766.0,96765.0,0.56461518]
[1732938694722,1.0716884,96766.0,96765.0,0.52327718]
[1732938695152,1.0716884,96766.0,96765.0,0.48193918]
[1732938695395,1.0716884,96766.0,96765.0,0.46127018]
[1732938695606,1.0716884,96766.0,96765.0,0.44060118]
[1732938695807,1.17451986,96766.0,96765.0,0.37859418]
[1732938696053,1.17451986,96766.0,96765.0,0.35792518]
[1732938696271,1.0716884,96766.0,96765.0,0.35792518]
[1732938696913,1.0252884,96766.0,96765.0,0.35792518]
[1732938697440,0.83953186,96766.0,96765.0,0.33725618]
[1732938701076,0.76363186,96766.0,96765.0,0.33725618]
[1732938701290,0.86646332,96766.0,96765.0,0.33725618]
[1732938705408,1.0520768,96766.0,96765.0,0.33725618]
[1732938705862,0.86646332,96766.0,96765.0,0.33725618]
[1732938706099,1.09848017,96766.0,96765.0,0.33725618]
[1732938714611,0.86646332,96766.0,96765.0,0.33725618]
[1732938714835,1.09845838,96766.0,96765.0,0.33725618]
[1732938716529,1.11464089,96766.0,96765.0,0.33725618]
[1732938720042,0.88264583,96766.0,96765.0,0.33725618]
[1732938724005,0.88264583,96766.0,96765.0,0.33572767]
[1732938725656,0.77981437,96766.0,96765.0,0.33572767]
[1732938725908,0.75681437,96766.0,96765.0,0.46182767]
[1732938727207,1.0120149,96766.0,96765.0,0.46182767]
[1732938727412,0.77981437,96766.0,96765.0,0.46182767]
[1732938728662,0.88264583,96766.0,96765.0,0.46182767]
[1732938729044,0.77981437,96766.0,96765.0,0.46182767]
[1732938732810,0.96324831,96766.0,96765.0,0.46182767]
[1732938733011,0.9167206,96766.0,96765.0,0.46182767]
[1732938733220,0.56006016,96766.0,96765.0,0.46182767]
[1732938733430,0.52908181,96766.0,96765.0,0.46182767]
[1732938734115,0.52208181,96766.0,96765.0,0.46082767]
[1732938734491,0.67908181,96766.0,96765.0,0.46182767]
[1732938734690,0.67408181,96766.0,96765.0,0.46082767]
[1732938735117,0.68208181,96766.0,96765.0,0.46182767]
[1732938735757,0.67508181,96766.0,96765.0,0.46082767]
[1732938736070,0.68008181,96766.0,96765.0,0.46082767]
[1732938736476,0.53008181,96766.0,96765.0,0.46082767]
[1732938744521,0.81591327,96766.0,96765.0,0.46082767]
[1732938744727,0.81591327,96766.0,96765.0,0.33472767]
[1732938746162,0.8368824,96766.0,96765.0,0.33472767]
[1732938748077,0.86778926,96766.0,96765.0,0.33472767]
[1732938748764,1.54839005,96766.0,96765.0,0.14870667]
[1732938748964,1.65839005,96766.0,96765.0,0.10493239]
[1732938749181,1.52818926,96766.0,96765.0,0.10593239]
[1732938749401,1.53718926,96766.0,96765.0,0.10693239]
[1732938749520,1.56455859,96766.0,96765.0,0.10593239]
[1732938749744,1.3023578,96766.0,96765.0,0.10593239]
[1732938749963,1.28045094,96766.0,96765.0,0.10693239]
[1732938750603,1.27145094,96766.0,96765.0,0.10593239]
[1732938750816,1.28045094,96766.0,96765.0,0.10693239]
[1732938751231,1.27145094,96766.0,96765.0,0.10593239]